Cogmind - Beta 13 @@@ ROGUE MODE // 2024.04.22 @ 01:39:54 Player: Wyvric Result: Destroyed by G-50 Soldier with Heavy Laser Performance ------------- Evolutions (4) 2000 Regions Visited (12) 2400 Robots Destroyed (136) 680 Value Destroyed (6690) 6690 Prototype IDs (5) 100 Alien Tech Used (0) 0 Bonus (4207) 4207 TOTAL SCORE: 16077 Bonus ------- High Alert Combat Kills 430 Follower Combat Kills 1039 Entered Garrisons 800 Used RIF Installer 2500 Friendly Fire -562 Cogmind --------- Core Integrity 0/850 Matter 173/300 Energy 100/100 System Corruption 4% Temperature Cool (9) Movement Walking (120) Location -6/Garrison Parts ------- > --- POWER (1) -------- (None) > --- PROPULSION (4) --- Carbon-fiber Leg Flexi-carbon Leg Flexi-carbon Leg > --- UTILITY (8) ------ High-capacity Storage Unit Relay Coupler [NC] (20) Drone Bay (0/2) > --- WEAPON (2) ------- Autogun Gauss Rifle > --- INVENTORY (20) --- High-capacity Battery (250) Advanced Sensor Array Advanced Terrain Scan Processor Relay Coupler [NC] (28) Relay Coupler [NC] (33) Relay Coupler [NC] (33) Relay Coupler [NC] (26) Relay Coupler [NC] (22) Relay Coupler [NC] (23) Relay Coupler [NC] (22) Relay Coupler [NC] (30) Relay Coupler [Swarmer] (31) Relay Coupler [Duelist] (29) Relay Coupler [Sentry] (20) Relay Coupler [Behemoth] (12) Autogun Autogun Remote Datajack Remote Datajack Peak State ------------ > --- POWER ------------ Deuterium Engine > --- PROPULSION ------- Improved Heavy Treads Improved Heavy Treads > --- UTILITY ---------- Huge Storage Unit Improved Light Armor Plating Layered Light Armor Plating Relay Coupler [NC] Relay Coupler [Grunt] Relay Coupler [Sentry] Corruption Screen Drone Bay > --- WEAPON ----------- Lightning Gun Chainsword > --- INVENTORY -------- Improved Deuterium Engine Improved Heavy Treads Armored Wheel Armored Wheel High-capacity Storage Unit Advanced Terrain Scan Processor Improved Utility Shielding Improved Utility Shielding Layered Light Armor Plating Relay Coupler [NC] Relay Coupler [NC] Relay Coupler [NC] Relay Coupler [NC] Relay Coupler [NC] Relay Coupler [NC] Relay Coupler [NC] Drone Bay Lightning Gun Lightning Gun Precision Grenade Launcher Remote Datajack Remote Datajack [Rating: 71] Favorites ----------- Power Deuterium Engine Engine Deuterium Engine Power Core Light Nuclear Core Propulsion Armored Wheel Treads Armored Treads Leg Aluminum Leg Wheel Armored Wheel Utility Huge Storage Unit Device Splice Drone Bay Storage Huge Storage Unit Processor Signal Interpreter Hackware Hacking Suite Protection Improved Medium Armor Plating Weapon Light Cannon Energy Gun Lightning Gun Energy Cannon Particle Cannon Ballistic Gun Assault Rifle Ballistic Cannon Light Cannon Launcher Precision Grenade Launcher Special Weapon Remote Datajack Slashing Weapon Chainsword Build | -11 -10 -10 -10 -9 -8 -8 -8 -8 -7 -7 -6 -6 ------- Run | Yrd Mat Min Exi Min Mat Gar Mat Gar Fac Gar Fac Gar Slots Evolved 8 | . . . . . 4 . . . 2 . 2 . Power . | . . . . . . . . . . . . . Propulsion 2 | . . . . . 2 . . . . . . . Utility 6 | . . . . . 2 . . . 2 . 2 . Weapon . | . . . . . . . . . . . . . Parts Attached 293 | 6 18 22 6 2 59 46 6 20 26 33 26 23 Power 18 | 1 3 1 1 . 4 . . 1 3 2 1 1 Engine 14 | 1 2 1 . . 4 . . . 3 1 1 1 Core 4 | . 1 . 1 . . . . 1 . 1 . . Reactor . | . . . . . . . . . . . . . Propulsion 69 | 2 4 13 . 2 10 16 . . 2 8 5 7 Treads 22 | . 2 3 . 1 2 8 . . . 5 1 . Leg 10 | 2 . 2 . . . . . . . . . 6 Wheel 37 | . 2 8 . 1 8 8 . . 2 3 4 1 Hover . | . . . . . . . . . . . . . Flight . | . . . . . . . . . . . . . Utility 90 | 1 5 2 3 . 16 11 4 7 11 13 8 9 Device 31 | . . 2 2 . 7 2 1 3 3 3 2 6 Storage 8 | 1 3 . . . 1 . . . . 2 . 1 Processor 5 | . 1 . . . 1 . . 1 . . 2 . Hackware 17 | . . . . . 2 3 2 1 6 3 . . Protection 29 | . 1 . 1 . 5 6 1 2 2 5 4 2 Artifact . | . . . . . . . . . . . . . Weapon 116 | 2 6 6 2 . 29 19 2 12 10 10 12 6 Energy Gun 39 | 2 . 2 . . 12 6 . 2 5 4 4 2 Energy Cannon 6 | . . . . . 6 . . . . . . . Ballistic Gun 10 | . 2 2 . . 3 . . . . . . 3 Ballistic Cannon 12 | . 4 1 2 . 3 2 . . . . . . Launcher 16 | . . . . . . 6 . 5 1 3 1 . Special Weapon 14 | . . 1 . . . 2 1 3 2 2 3 . Impact Weapon . | . . . . . . . . . . . . . Slashing Weapon 19 | . . . . . 5 3 1 2 2 1 4 1 Piercing Weapon . | . . . . . . . . . . . . . Special Melee Weapon . | . . . . . . . . . . . . . Unidentified Prototypes 2 | . . . 1 . 1 . . . . . . . Parts Lost 74 | . 1 9 . 1 18 5 . 1 2 7 14 16 Power 7 | . 1 1 . . 1 . . . . 1 2 1 Propulsion 27 | . . 5 . . 8 4 . . 1 2 3 4 Utility 21 | . . 1 . . 3 1 . . 1 2 5 8 Weapon 19 | . . 2 . 1 6 . . 1 . 2 4 3 Highest Loss Streak 13 | . 1 4 . 1 9 2 . 1 2 3 10 13 To Critical Strikes . | . . . . . . . . . . . . . Average Slot Usage (%) 93 | . 97 98 100 99 94 99 99 100 99 82 76 71 Engine 5 | . 9 6 . . 7 9 9 . 4 5 3 2 Core 3 | . 4 7 13 14 1 . . 8 2 . . . Treads 8 | . 12 . . . 14 19 . . . 14 10 3 Leg 2 | . 8 9 . . . . . . . . . 7 Wheel 17 | . 7 17 28 27 20 16 36 36 30 3 3 5 Device 6 | . . 7 13 14 11 4 1 6 4 1 3 14 Storage 9 | . 14 14 14 14 9 9 9 9 7 7 6 6 Processor 1 | . 5 6 . . . . . 1 1 . 4 . Hackware 9 | . . . . . . 11 22 18 29 24 20 11 Protection 5 | . 7 . . . 10 10 2 1 1 8 7 5 Energy Gun 4 | . 3 10 . . 7 4 . 3 4 5 6 3 Ballistic Gun 1 | . . 6 . . 2 . . . . . . 3 Ballistic Cannon 7 | . 23 10 28 27 3 4 . . . . . . Launcher 1 | . . . . . . 7 8 10 . . . . Special Weapon 1 | . . . . . . . 7 1 5 5 1 . Slashing Weapon 1 | . . . . . 2 . 1 1 3 2 4 5 Naked Turns . | . . . . . . . . . . . . . Heaviest Build 116 | 12 91 91 92 92 114 116 109 105 109 112 109 111 Greatest Support 150 | 20 40 26 26 26 46 80 48 48 48 150 150 75 Greatest Overweight (x) 9 | 2 4 8 3 3 9 5 2 2 2 3 3 6 Average Overweight (x) 2 | . 1 4 3 3 4 3 1 1 1 . 1 2 Largest Inventory Capacity 30 | 8 25 25 25 25 25 25 25 25 25 30 25 25 Average Capacity 23 | 7 12 25 25 25 25 25 25 25 25 25 25 23 Most Carried 25 | 8 17 25 25 25 25 25 25 25 25 25 25 25 Average Carried 21 | 6 9 20 24 23 22 24 23 24 24 24 21 20 Final Capacity 25 | 8 25 25 25 25 25 25 25 25 25 25 25 20 Final Carried 25 | 6 17 25 25 25 25 24 25 24 23 25 20 19 Class Distribution -------------------- 40% | Scavenger-Mutant 24% | Botlord-Mutant 19% | Bothacker-Mutant 15% | Mutant Dominant Class ---------------- Mutant | -10/Materials Scavenger-Mutant | -10/Mines Scavenger-Mutant | -10/Exiles Scavenger-Mutant | -9/Mines Scavenger-Mutant | -8/Materials Scavenger-Mutant | -8/Garrison Bothacker-Mutant | -8/Materials Bothacker-Mutant | -8/Garrison Bothacker-Mutant | -7/Factory Botlord-Mutant | -7/Garrison Botlord-Mutant | -6/Factory Botlord-Mutant | -6/Garrison Resources | -11 -10 -10 -10 -9 -8 -8 -8 -8 -7 -7 -6 -6 ----------- Run | Yrd Mat Min Exi Min Mat Gar Mat Gar Fac Gar Fac Gar Matter Collected 4875 | 229 333 608 . 143 569 898 82 438 396 605 243 331 Remotely . | . . . . . . . . . . . . . Salvage Created 5523 | . 378 367 . 33 1200 793 . 323 134 1308 475 512 Parts 248 | . 35 22 . 1 50 42 . 10 11 40 17 20 Haulers Intercepted . | . . . . . . . . . . . . . Recyclers Shooed . | . . . . . . . . . . . . . Parts Field Recycled . | . . . . . . . . . . . . . Retrieved Matter . | . . . . . . . . . . . . . Parts Self-Destructed . | . . . . . . . . . . . . . Prevented . | . . . . . . . . . . . . . Kills | -11 -10 -10 -10 -9 -8 -8 -8 -8 -7 -7 -6 -6 ------- Run | Yrd Mat Min Exi Min Mat Gar Mat Gar Fac Gar Fac Gar Combat Hostiles Destroyed 126 | . 13 12 . 2 24 22 . 10 6 16 11 10 Melee 12 | . . . . . 1 2 . . . 2 4 3 Guns 44 | . 4 8 . . 15 1 . . 2 4 4 6 Cannons 26 | . 9 4 . 2 6 5 . . . . . . AOE 41 | . . . . . 1 13 . 10 4 10 3 . Classes Destroyed 16 | . 5 2 . . 5 . . . . . 4 . Worker 3 | . 2 . . . . . . . 1 . . . Tunneler 2 | . . 2 . . . . . . . . . . Operator 1 | . 1 . . . . . . . . . . . Watcher 3 | . 1 . . . 2 . . . . . . . Swarmer 29 | . 3 . . . . 6 . 2 4 11 . 3 Saboteur 1 | . . . . . . . . . . . 1 . Grunt 68 | . 10 11 . 1 13 15 . 7 1 1 5 4 Brawler 1 | . . . . . . . . . . . 1 . Duelist 4 | . . . . . 2 1 . . . . 1 . Sentry 10 | . . . . . 4 1 . . 1 4 . . Demolisher 1 | . . . . . . . . . . . 1 . Specialist 4 | . . . . . 1 . . . . 2 . 1 Hunter 7 | . . . . . 3 . . 1 . . 1 2 Programmer 1 | . . . . . . . . . . . 1 . Heavy 1 | . . . . . 1 . . . . . . . Assembled 2 | . . 1 . 1 . . . . . . . . Best Kill Streak 11 | . 4 4 . 1 5 11 . 4 4 9 4 3 Combat Bots Only 11 | . 4 4 . 1 5 11 . 4 4 9 4 3 Max Kills in Single Turn 4 | . 1 1 . 1 1 4 . 2 3 2 2 1 Gunslinging 1 | . . . . . . . . . 1 . . . Exploded 4 | . . . . . 1 4 . 2 3 2 2 . Melee 1 | . . . . . 1 1 . . . 1 1 1 Uniques/NPCs Destroyed . | . . . . . . . . . . . . . Combat | -11 -10 -10 -10 -9 -8 -8 -8 -8 -7 -7 -6 -6 -------- Run | Yrd Mat Min Exi Min Mat Gar Mat Gar Fac Gar Fac Gar Hostile Shots Fired 1055 | . 57 62 . 19 187 98 5 12 49 236 142 188 Missed 287 | . 15 12 . 4 42 32 3 3 21 76 29 50 Damage Taken 12131 | . 460 627 . 233 2445 1151 33 212 459 1642 2466 2403 Core 1715 | . 40 136 . 27 230 144 . 21 77 177 233 630 Absorbed by Shields . | . . . . . . . . . . . . . Reduced by Siege Mode 6 | . . . . . . . . . . . . 6 Redirected to Shielding 319 | . . . . . 75 30 . . . . . 214 Ignored by Resistances 123 | . . . . . . . . . . . 3 120 Core Remaining (%) 52 | 100 . . . 18 . . . 28 . 63 . . Volleys Fired 378 | . 39 58 . 6 78 48 5 18 22 43 20 41 Largest 2 | . 2 2 . 2 2 2 1 2 2 2 2 2 Hottest 144 | . 100 140 . 74 136 119 5 100 100 110 110 144 Shots Fired 641 | . 78 97 . 12 155 78 5 31 28 55 28 74 Gun 361 | . 22 58 . . 113 28 . 4 12 32 18 74 Cannon 162 | . 56 36 . 12 42 16 . . . . . . Launcher 52 | . . . . . . 18 . 22 2 9 1 . Special 66 | . . 3 . . . 16 5 5 14 14 9 . Kinetic 224 | . 66 54 . 12 28 16 . . . . . 48 Thermal 214 | . 12 43 . . 118 15 . . . . . 26 Explosive 52 | . . . . . . 18 . 22 2 9 1 . Electromagnetic 88 | . . . . . 9 13 . 4 12 32 18 . Robot Hit Streak 18 | . 10 13 . 7 16 18 6 3 4 13 6 9 Robot Miss Streak 6 | . 4 2 . 1 3 6 1 2 2 2 1 3 Penetration Max . | . . . . . . . . . . . . . Secondary Targets 5 | . . . . . 2 . . . 1 . 1 1 Max Gunslinging Chain 1 | . . . . . 1 . . . 1 . 1 1 Shots Hit Robots 511 | . 45 58 . 10 124 62 4 9 19 76 43 61 Core Hits 261 | . 20 24 . 3 48 53 . 18 9 46 20 20 Critical Kills . | . . . . . . . . . . . . . Critical Parts Destroyed . | . . . . . . . . . . . . . Critical Strikes 22 | . 5 . . . 4 2 . 2 . 4 2 3 Burn 5 | . 2 . . . 3 . . . . . . . Blast 4 | . 3 . . . 1 . . . . . . . Corrupt 1 | . . . . . . . . . . . 1 . Sever 12 | . . . . . . 2 . 2 . 4 1 3 Melee Attacks 133 | . . . . . 8 14 2 6 15 43 31 14 Impact . | . . . . . . . . . . . . . Slashing 133 | . . . . . 8 14 2 6 15 43 31 14 Piercing . | . . . . . . . . . . . . . Sneak Attacks 4 | . . . . . . 1 . . 1 2 . . Combat Hostiles . | . . . . . . . . . . . . . Follow-up Attacks 6 | . . . . . . . . . . . 4 2 Damage Inflicted 14491 | . 731 744 . 195 2153 2335 . 1062 593 4158 1390 1130 Guns 4017 | . 129 516 . . 1442 337 . 31 127 366 291 778 Cannons 1896 | . 602 180 . 195 642 277 . . . . . . Explosions 3931 | . . . . . . 1145 . 798 380 1200 408 . Melee 4593 | . . . . . 63 576 . 233 86 2592 691 352 Ramming 6 | . . . . . 6 . . . . . . . Kinetic 2294 | . 671 326 . 195 380 277 . . . . . 445 Thermal 2679 | . 60 418 . . 1589 152 . . . 127 . 333 Explosive 3804 | . . . . . . 1145 . 798 380 1073 408 . Electromagnetic 1115 | . . . . . 115 185 . 31 127 366 291 . Impact . | . . . . . . . . . . . . . Slashing 4593 | . . . . . 63 576 . 233 86 2592 691 352 Piercing . | . . . . . . . . . . . . . Highest Corruption 4 | . 1 1 1 1 . . . . . . 4 4 Average Corruption 1 | . 1 1 1 1 . . . . . . 3 4 Corruption Purged . | . . . . . . . . . . . . . Corruption Blocked 5 | . . . . . . . . . . . 5 . Effects 36 | . 8 3 3 2 . . . . . . 6 14 Message Errors 11 | . 2 1 2 1 . . . . . . 3 2 Matter Fused 7 | . 1 . . 1 . . . . . . 1 4 Heat Flow Errors 4 | . 3 . . . . . . . . . 1 . Energy Discharges 2 | . 1 . 1 . . . . . . . . . Parts Rejected 3 | . . . . . . . . . . . 1 2 Data Loss (minor) 5 | . 1 1 . . . . . . . . . 3 Data Loss (major) 3 | . . 1 . . . . . . . . . 2 Weapon Failures 1 | . . . . . . . . . . . . 1 Overload Shots . | . . . . . . . . . . . . . Overflow Damage 428 | . 7 . . . 10 56 . 9 26 210 110 . Projectiles 17 | . 7 . . . 10 . . . . . . . Explosions 205 | . . . . . . 55 . 9 26 80 35 . Melee 206 | . . . . . . 1 . . . 130 75 . Knockbacks 15 | . 8 . . 1 . 6 . . . . . . Impact . | . . . . . . . . . . . . . Kinetic 15 | . 8 . . 1 . 6 . . . . . . Secondary . | . . . . . . . . . . . . . Self-Inflicted Damage 405 | . . . . . . 65 . 7 99 205 29 . Shots 13 | . . . . . . 3 . 1 2 6 1 . Rammed 1 | . . . . . 1 . . . . . . . Targets Rammed 1 | . . . . . 1 . . . . . . . Kicked . | . . . . . . . . . . . . . Crushed . | . . . . . . . . . . . . . Highest Temperature 344 | . 153 201 . 162 261 344 . 33 75 225 160 27 Average Temperature 71 | . 53 82 . 75 71 89 . 15 28 92 69 11 Received Heat Transfer 3061 | . 195 330 . 112 900 459 . 54 51 294 246 420 Effects 1 | . . . . . . 1 . . . . . . Energy Bleed 1 | . . . . . . 1 . . . . . . Siege Activations 2 | . . . . . . . . . . 1 . 1 Total Turns 21 | . . . . . . . . . . 20 . 1 Longest Duration 20 | . . . . . . . . . . 20 . 1 Robots Corrupted . | . . . . . . . . . . . . . Combat Hostiles . | . . . . . . . . . . . . . Parts Fried 1 | . . . . . . . . . . 1 . . Impact Corruptions . | . . . . . . . . . . . . . Robots Melted 3 | . . . . . 1 1 . . . . . 1 Combat Hostiles 3 | . . . . . 1 1 . . . . . 1 Parts Melted 23 | . 3 2 . . 11 1 . . . . . 6 Heat Transferred 5973 | . 333 950 . . 3700 296 . . . 50 . 644 Parts Sabotaged . | . . . . . . . . . . . . . Parts Stolen . | . . . . . . . . . . . . . Parts Stripped . | . . . . . . . . . . . . . Power Chain Reactions 2 | . . . . . . . . . . 2 . . Alert | -11 -10 -10 -10 -9 -8 -8 -8 -8 -7 -7 -6 -6 ------- Run | Yrd Mat Min Exi Min Mat Gar Mat Gar Fac Gar Fac Gar Peak Influence 926 | . 212 118 . 46 282 699 508 900 551 926 598 470 Initial 485 | . . 78 . . 13 . 340 152 466 298 485 240 Average 302 | . 115 64 . 25 127 382 351 593 347 619 472 351 Maximum Alert Level 3 | . 1 . . . 1 2 2 3 2 3 2 2 Low Security (%) 42 | 100 95 100 . 100 70 22 . 3 18 . . . Level 1 22 | . 4 . . . 29 28 50 33 24 11 19 75 Level 2 25 | . . . . . . 48 49 18 57 38 80 24 Level 3 9 | . . . . . . . . 44 . 50 . . Level 4 . | . . . . . . . . . . . . . Level 5 . | . . . . . . . . . . . . . High Security . | . . . . . . . . . . . . . Max Security . | . . . . . . . . . . . . . Squads Dispatched 17 | . 4 . . . 4 . 1 . 3 . 5 . Investigation 3 | . 2 . . . 1 . . . . . . . Extermination 1 | . . . . . . . . . . . 1 . Reinforcement 10 | . 2 . . . 3 . 1 . 1 . 3 . Assault 1 | . . . . . . . . . . . 1 . Garrison 2 | . . . . . . . . . 2 . . . Intercept . | . . . . . . . . . . . . . Searches Triggered . | . . . . . . . . . . . . . Construction Impeded 2 | . . . . . . . . . . . 2 . Haulers Reinforced . | . . . . . . . . . . . . . Active Scanning Responses . | . . . . . . . . . . . . . Cargo Convoy Interrupts . | . . . . . . . . . . . . . Stealth | -11 -10 -10 -10 -9 -8 -8 -8 -8 -7 -7 -6 -6 --------- Run | Yrd Mat Min Exi Min Mat Gar Mat Gar Fac Gar Fac Gar Distress Signals 9 | . 1 1 . . 7 . . . . . . . Communications Jammed . | . . . . . . . . . . . . . Distress Signals . | . . . . . . . . . . . . . Times Spotted 239 | . 21 13 . 11 42 37 7 21 19 31 24 13 Peak Tracking Total 9 | . 4 5 . 4 5 9 3 3 5 7 9 6 Tactical Retreats 17 | . 2 1 . . 4 . . 1 2 1 4 2 Traps | -11 -10 -10 -10 -9 -8 -8 -8 -8 -7 -7 -6 -6 ------- Run | Yrd Mat Min Exi Min Mat Gar Mat Gar Fac Gar Fac Gar Traps Triggered 15 | . 1 . . . 1 6 . 1 . 3 1 2 Indirectly . | . . . . . . . . . . . . . Trap Hack Attempts . | . . . . . . . . . . . . . Triggered . | . . . . . . . . . . . . . Disarmed . | . . . . . . . . . . . . . Reprogrammed . | . . . . . . . . . . . . . Reused . | . . . . . . . . . . . . . Traps Extracted . | . . . . . . . . . . . . . Installed . | . . . . . . . . . . . . . Triggered . | . . . . . . . . . . . . . Machines | -11 -10 -10 -10 -9 -8 -8 -8 -8 -7 -7 -6 -6 ---------- Run | Yrd Mat Min Exi Min Mat Gar Mat Gar Fac Gar Fac Gar Machines Disabled 13 | . 1 . . . 1 2 . 1 . 3 4 1 Max in Single Turn 1 | . 1 . . . 1 1 . 1 . 1 1 1 Garrison Relay 7 | . . . . . . 2 . 1 . 3 . 1 Machines Repaired . | . . . . . . . . . . . . . Machines Dismantled . | . . . . . . . . . . . . . Machines Sabotaged . | . . . . . . . . . . . . . Overloaded Fab Kills . | . . . . . . . . . . . . . Hacking | -11 -10 -10 -10 -9 -8 -8 -8 -8 -7 -7 -6 -6 --------- Run | Yrd Mat Min Exi Min Mat Gar Mat Gar Fac Gar Fac Gar Machines Accessed 40 | . 9 2 3 . 8 3 2 1 6 1 4 1 Terminals 27 | . 6 1 . . 6 3 1 1 5 1 2 1 Fabricators . | . . . . . . . . . . . . . Repair Stations 1 | . 1 . . . . . . . . . . . Recycling Units 2 | . 2 . . . . . . . . . . . Scanalyzers 2 | . . . . . 1 . . . . . 1 . Garrison Access 4 | . . . . . 1 . 1 . 1 . 1 . Total Hacks 86 | . 19 2 3 . 25 3 5 2 16 3 7 1 Successful 34 | . 7 1 3 . 12 1 2 1 5 . 2 . Failed 52 | . 12 1 . . 13 2 3 1 11 3 5 1 Catastrophic 13 | . 5 . . . 2 1 . 1 3 . 1 . Database Lockouts . | . . . . . . . . . . . . . Manual 40 | . 16 . 3 . 10 . 3 1 7 . . . Terminals 66 | . 16 1 . . 18 3 3 2 15 3 4 1 Fabricators . | . . . . . . . . . . . . . Repair Stations 1 | . 1 . . . . . . . . . . . Recycling Units 2 | . 2 . . . . . . . . . . . Scanalyzers 7 | . . . . . 5 . . . . . 2 . Garrison Access 6 | . . . . . 2 . 2 . 1 . 1 . Terminal Hacks 21 | . 3 1 3 . 7 1 . 1 4 . 1 . Record 3 | . . . 3 . . . . . . . . . Part Schematic 3 | . . . . . . . . . 3 . . . Prototype ID Bank 2 | . 2 . . . . . . . . . . . Open Door 1 | . . 1 . . . . . . . . . . Branch Access Points 1 | . 1 . . . . . . . . . . . Emergency Access Points 2 | . . . . . . 1 . 1 . . . . Terminal Index 1 | . . . . . 1 . . . . . . . Unreport Threat 4 | . . . . . 2 . . . 1 . 1 . Zone Layout 4 | . . . . . 4 . . . . . . . Fabricator Hacks . | . . . . . . . . . . . . . Repair Station Hacks 1 | . 1 . . . . . . . . . . . Scan Component 1 | . 1 . . . . . . . . . . . Recycling Unit Hacks . | . . . . . . . . . . . . . Scanalyzer 2 | . . . . . 2 . . . . . . . Insert Component 2 | . . . . . 2 . . . . . . . Garrison Access Hacks 6 | . . . . . 2 . 2 . 1 . 1 . Unlock Access 4 | . . . . . 1 . 1 . 1 . 1 . Coupler Status 2 | . . . . . 1 . 1 . . . . . Unauthorized Hacks 4 | . 3 . . . 1 . . . . . . . Terminals 2 | . 1 . . . 1 . . . . . . . Botnet 2 | . 1 . . . 1 . . . . . . . Fabricators . | . . . . . . . . . . . . . Repair Stations . | . . . . . . . . . . . . . Recycling Units 2 | . 2 . . . . . . . . . . . Tunnel 2 | . 2 . . . . . . . . . . . Scanalyzers . | . . . . . . . . . . . . . Garrison Access . | . . . . . . . . . . . . . Data Cores Recovered 2 | . 1 . . . . . . . 1 . . . Used . | . . . . . . . . . . . . . Hacking Detections 31 | . 6 1 . . 7 3 2 1 6 1 3 1 Full Trace Events 1 | . 1 . . . . . . . . . . . Feedback Events . | . . . . . . . . . . . . . Feedback Blocked . | . . . . . . . . . . . . . Robot Schematics Acquired . | . . . . . . . . . . . . . Robots Built . | . . . . . . . . . . . . . Authchips . | . . . . . . . . . . . . . Time . | . . . . . . . . . . . . . Total Robot Build Rating . | . . . . . . . . . . . . . Part Schematics Acquired 3 | . . . . . . . . . 3 . . . Parts Built . | . . . . . . . . . . . . . Authchips . | . . . . . . . . . . . . . Time . | . . . . . . . . . . . . . Total Part Build Rating . | . . . . . . . . . . . . . Parts Repaired . | . . . . . . . . . . . . . Time . | . . . . . . . . . . . . . Parts Recycled . | . . . . . . . . . . . . . Recycled Matter . | . . . . . . . . . . . . . Retrieved Matter . | . . . . . . . . . . . . . Retrieved Components . | . . . . . . . . . . . . . Parts Scanalyzed . | . . . . . . . . . . . . . Part Schematics Acquired . | . . . . . . . . . . . . . Parts Damaged . | . . . . . . . . . . . . . Bothacking | -11 -10 -10 -10 -9 -8 -8 -8 -8 -7 -7 -6 -6 ------------ Run | Yrd Mat Min Exi Min Mat Gar Mat Gar Fac Gar Fac Gar Used RIF Installer 5 | . . . . . . 2 . 2 . 1 . . Hotswap 1 | . . . . . . . . 1 . . . . Zone Cloak 1 | . . . . . . 1 . . . . . . Patrol Navigation 1 | . . . . . . . . . . 1 . . Program Shield 1 | . . . . . . . . 1 . . . . Robots Hacked 32 | . . . . . . 4 2 4 6 8 8 . Non-combat 4 | . . . . . . . 1 . 2 . 1 . Combat 28 | . . . . . . 4 1 4 4 8 7 . Robot Hacks Applied 38 | . . . . . . 4 4 4 9 8 9 . parse_system 4 | . . . . . . . . . 3 . 1 . no_distress 1 | . . . . . . . . . 1 . . . find_chute 1 | . . . . . . . . . . . 1 . drop_inventory 1 | . . . . . . . . . 1 . . . purge_threat 2 | . . . . . . . 2 . . . . . find_garrison 2 | . . . . . . . . . 1 . 1 . overload_power 1 | . . . . . . . . . . . 1 . amplify_resonance 4 | . . . . . . 1 . . . 2 1 . disable_weapons 2 | . . . . . . . . 2 . . . . overwrite_iff 4 | . . . . . . . . . 1 3 . . streamctrl_low 1 | . . . . . . . 1 . . . . . streamctrl_high 3 | . . . . . . 1 . . 1 . 1 . formatsys_high 12 | . . . . . . 2 1 2 1 3 3 . Relay Couplers Released 32 | . . . . . . 10 . 5 . 12 . 5 Machine Destruction 32 | . . . . . . 10 . 5 . 12 . 5 Attached 13 | . . . . . . 3 2 1 4 3 . . Fabnet Peak Effective % . | . . . . . . . . . . . . . Robots Rewired 7 | . . . . . . 4 . 3 . . . . Allies Hacked . | . . . . . . . . . . . . . Hacks Repelled . | . . . . . . . . . . . . . Allies | -11 -10 -10 -10 -9 -8 -8 -8 -8 -7 -7 -6 -6 -------- Run | Yrd Mat Min Exi Min Mat Gar Mat Gar Fac Gar Fac Gar Total Allies 38 | . . . . 3 . 10 3 6 5 7 4 . Largest Group 7 | . . . . 3 3 5 7 6 6 2 2 . Highest-Rated Group 130 | . . . . 40 40 105 130 120 124 60 60 . Highest-Rated Ally 32 | . . . . 16 16 21 21 24 32 32 32 . Total Orders 140 | . . . 3 . . 26 3 45 32 17 6 8 STAY 8 | . . . . . . . . 4 4 . . . FOLLOW 9 | . . . . . . . . 5 4 . . . EXPLORE 67 | . . . 1 . . 12 2 20 13 10 3 6 RETURN 56 | . . . 2 . . 14 1 16 11 7 3 2 Ally Attacks 264 | . . . . 19 14 34 16 85 53 32 11 . Total Damage 4400 | . . . . 170 152 379 214 1301 1270 430 484 . Kills 43 | . . . . 4 1 4 4 14 10 3 3 . Allies Corrupted 1 | . . . . . . . . . . . 1 . Allies Melted 1 | . . . . . . . . 1 . . . . Intel | -11 -10 -10 -10 -9 -8 -8 -8 -8 -7 -7 -6 -6 ------- Run | Yrd Mat Min Exi Min Mat Gar Mat Gar Fac Gar Fac Gar Robot Analysis Total . | . . . . . . . . . . . . . Derelict Logs Recovered 1 | . . 1 . . . . . . . . . . Drone Launches 100 | . . . 2 . . 26 4 23 17 14 4 10 Drone Recoveries 92 | . . . 2 . . 24 4 23 16 13 4 6 Exploration | -11 -10 -10 -10 -9 -8 -8 -8 -8 -7 -7 -6 -6 ------------- Run | Yrd Mat Min Exi Min Mat Gar Mat Gar Fac Gar Fac Gar Turns Passed 10963 | 61 1125 1157 938 389 1601 1434 287 616 744 1266 680 665 Spaces Moved 5687 | 44 644 426 682 243 792 644 200 398 483 592 318 221 Core 17 | 17 . . . . . . . . . . . . Treads 1166 | . 250 1 . . . 107 . . . 520 211 77 Legs 393 | 27 231 85 . . . . . . . . . 50 Wheels 4111 | . 163 340 682 243 792 537 200 398 483 72 107 94 Hover . | . . . . . . . . . . . . . Flight . | . . . . . . . . . . . . . Fastest Speed 50 | 50 120 135 135 135 110 120 105 105 105 120 135 120 Average Speed 147 | 104 140 193 135 135 144 169 117 117 118 157 152 186 Slowest Speed 560 | 150 160 480 135 135 215 560 120 120 120 250 240 240 Overloaded Moves . | . . . . . . . . . . . . . Propulsion Burnouts . | . . . . . . . . . . . . . Robots Hopped . | . . . . . . . . . . . . . Cave-ins Triggered . | . . . . . . . . . . . . . Exploration Rate (%) 52 | 3 80 69 93 40 74 77 21 68 37 77 22 23 Regions Visited 12 Branch Regions 3 Pre-discovered Areas 4 | . 2 2 . . . . . . . . . . Known Exits Taken 5 | . 1 . . . 1 . 1 . 1 . 1 . Unknown Exits Taken 4 | 1 . 1 1 1 . . . . . . . . Scrap Searched 2 | . . 1 . 1 . . . . . . . . Spaces Dug 65 | . . . . . 4 8 2 19 13 18 1 . Terrain Destroyed 256 | . . 1 . 1 6 38 2 127 18 48 15 . Melee 20 | . . . . . 4 . 2 . 13 . 1 . Projectile 4 | . . 1 . 1 2 . . . . . . . AOE 232 | . . . . . . 38 . 127 5 48 14 . Terrain Rammed . | . . . . . . . . . . . . . Walls Destroyed . | . . . . . . . . . . . . . Machines Disabled . | . . . . . . . . . . . . . Actions | -11 -10 -10 -10 -9 -8 -8 -8 -8 -7 -7 -6 -6 --------- Run | Yrd Mat Min Exi Min Mat Gar Mat Gar Fac Gar Fac Gar Total 7459 | 57 783 650 698 295 1092 886 245 503 605 816 438 391 Wait 589 | . 56 117 5 27 70 67 24 34 42 58 32 57 Move 5672 | 43 643 425 681 242 791 642 199 396 482 590 317 221 Hop . | . . . . . . . . . . . . . Pick Up 212 | 8 17 23 3 9 52 21 6 6 9 25 11 22 Fast Attach 25 | 4 4 . . . 3 1 . . 1 3 5 4 Attach 91 | 2 . 9 . . 24 10 1 2 4 14 10 15 Detach 6 | . . . . . 1 . . . 1 3 . 1 Swap 177 | . 14 13 6 2 32 35 5 18 21 16 11 4 Drop 129 | . 10 5 3 9 34 16 3 7 8 20 4 10 Fire 378 | . 39 58 . 6 78 48 5 18 22 43 20 41 Melee 125 | . . . . . 6 14 2 6 15 43 27 12 Ram . | . . . . . . . . . . . . . Kick . | . . . . . . . . . . . . . Crush 1 | . . . . . 1 . . . . . . . Escape Stasis 36 | . . . . . . 32 . . . . . 4 Rewire 18 | . . . . . . . . 16 . 1 1 . Trap . | . . . . . . . . . . . . . Miscellaneous . | . . . . . . . . . . . . . Route ------- -11/Scrapyard -10/Materials (discovered 3 exits: *Mat x2 / *Min) -10/Mines (discovered 3 exits: *Mat x2 / *Exi) -10/Exiles (discovered 2 exits: [*Min x2]) -9/Mines -8/Materials (discovered 5 exits: *Fac x3 / [*Sto] / Gar) -8/Garrison (discovered 3 exits: *Mat x3) -8/Materials (discovered 2 exits: [*Sto] / Gar) -8/Garrison (discovered 4 exits: *Fac x3 / *Mat) -7/Factory (discovered 3 exits: *Fac x2 / Gar) -7/Garrison (discovered 3 exits: *Fac x3) -6/Factory -6/Garrison History --------- Turn | Location | Event 20 | -11/Scrapyard | Discovered new exit (range 15) 62 | -11/Scrapyard | Entered Materials 302 | -10/Materials | Build established: Mutant 740 | -10/Materials | Discovered new exit (range 7) 789 | -10/Materials | Identified exit to Materials 955 | -10/Materials | Identified exit to Mines 1128 | -10/Materials | Discovered exit to Materials (range 16) 1187 | -10/Materials | Entered Mines 1261 | -10/Mines | Learned location of Storage (-8) 1391 | -10/Mines | Found the Drone Emporium 1397 | -10/Mines | Found Prototype Device 1417 | -10/Mines | Excavation squad dispatched 1417 | -10/Mines | A large section of the Mines collapsed 1667 | -10/Mines | Excavation squad dispatched 1812 | -10/Mines | Lost 4 parts (1p1n2w) 1855 | -10/Mines | Build established: Scavenger-Mutant 1917 | -10/Mines | Excavation squad dispatched 1960 | -10/Mines | Core integrity fell below 50% 2114 | -10/Mines | A weapon hastily lodged in a ceiling crevice suddenly fell to the ground 2167 | -10/Mines | Excavation squad dispatched 2241 | -10/Mines | Discovered exit to Materials (range 7) 2302 | -10/Mines | Discovered exit to Materials (range 7) 2339 | -10/Mines | Deemed a non-threat by the Exiles lab entrance 2339 | -10/Mines | Discovered new exit (range 5) 2344 | -10/Mines | Entered Exiles 2344 | -10/Exiles | Found Exiles lab abandoned 2380 | -10/Exiles | Identified Splice Drone Bay 2402 | -10/Exiles | Discovered new exit (range 14) 2809 | -10/Exiles | Discovered new exit (range 14) 3282 | -10/Exiles | Entered Mines 3485 | -9/Mines | Assembled infested the area 3553 | -9/Mines | Assisted by bots powering up and referring to "LRC-V3" 3651 | -9/Mines | Discovered new exit (range 12) 3667 | -9/Mines | Core integrity fell below 20% 3671 | -9/Mines | Entered Materials 3671 | -8/Materials | Accompanied by 3 allies 3671 | -8/Materials | Evolved 4 slots: Propulsion x2, Utility x2 3890 | -8/Materials | Discovered new exit (range 9) 3923 | -8/Materials | Lost 3 allies 3974 | -8/Materials | Lost 9 parts (1p6n1u1w) 4100 | -8/Materials | Discovered new exit (range 16) 4868 | -8/Materials | Discovered new exit (range 12) 5131 | -8/Materials | Discovered new exit (range 16) 5270 | -8/Materials | Identified exit to Garrison 5272 | -8/Materials | Entered Garrison 5313 | -8/Garrison | Core integrity fell below 50% 5364 | -8/Garrison | Triggered checkpoint 5466 | -8/Garrison | Triggered checkpoint 5574 | -8/Garrison | Triggered checkpoint 5614 | -8/Garrison | Lost 3 allies 5628 | -8/Garrison | Triggered checkpoint 5630 | -8/Garrison | Destroyed 11 combat bots 5681 | -8/Garrison | Discovered new exit (range 11) 5718 | -8/Garrison | Triggered checkpoint 5928 | -8/Garrison | Triggered checkpoint 5962 | -8/Garrison | Triggered checkpoint 6006 | -8/Garrison | Triggered checkpoint 6006 | -8/Garrison | Discovered new exit (range 14) 6073 | -8/Garrison | Installed Relay Interface Framework 6101 | -8/Garrison | Garrison Relay disabled 6208 | -8/Garrison | Triggered checkpoint 6366 | -8/Garrison | Triggered checkpoint 6381 | -8/Garrison | Garrison Relay disabled 6556 | -8/Garrison | Expanded RIF knowledge: Zone Cloak 6582 | -8/Garrison | Triggered checkpoint 6601 | -8/Garrison | Discovered new exit (range 36) 6691 | -8/Garrison | Build established: Bothacker-Mutant 6706 | -8/Garrison | Entered Materials 6706 | -8/Materials | Accompanied by 5 allies 6916 | -8/Materials | Discovered new exit (range 6) 6988 | -8/Materials | Identified exit to Garrison 6993 | -8/Materials | Entered Garrison 6993 | -8/Garrison | Accompanied by 6 allies 7013 | -8/Garrison | Triggered checkpoint 7033 | -8/Garrison | Triggered checkpoint 7049 | -8/Garrison | Garrison Relay disabled 7115 | -8/Garrison | Triggered checkpoint 7181 | -8/Garrison | Triggered checkpoint 7213 | -8/Garrison | Triggered checkpoint 7227 | -8/Garrison | Triggered checkpoint 7276 | -8/Garrison | Discovered new exit (range 28) 7279 | -8/Garrison | Discovered new exit (range 37) 7283 | -8/Garrison | Expanded RIF knowledge: Hotswap 7328 | -8/Garrison | Discovered new exit (range 34) 7333 | -8/Garrison | Triggered checkpoint 7335 | -8/Garrison | Triggered checkpoint 7335 | -8/Garrison | Discovered new exit (range 31) 7508 | -8/Garrison | Expanded RIF knowledge: Program Shield 7535 | -8/Garrison | Identified exit to Factory 7543 | -8/Garrison | Triggered checkpoint 7565 | -8/Garrison | Identified exit to Materials 7609 | -8/Garrison | Entered Factory 7609 | -7/Factory | Accompanied by 5 allies 7609 | -7/Factory | Evolved 2 slots: Utility x2 7793 | -7/Factory | Build established: Botlord-Mutant 8028 | -7/Factory | Discovered new exit (range 9) 8132 | -7/Factory | Build established: Bothacker-Mutant 8222 | -7/Factory | Discovered new exit (range 16) 8239 | -7/Factory | Garrison activated, responded to threat 8332 | -7/Factory | Identified exit to Garrison 8353 | -7/Factory | Entered Garrison 8365 | -7/Garrison | Triggered checkpoint 8375 | -7/Garrison | Triggered checkpoint 8447 | -7/Garrison | Lost 3 parts (1p2w) 8495 | -7/Garrison | Garrison Relay disabled 8781 | -7/Garrison | Build established: Botlord-Mutant 8839 | -7/Garrison | Triggered checkpoint 8851 | -7/Garrison | Triggered checkpoint 8900 | -7/Garrison | Destroyed 9 combat bots 8951 | -7/Garrison | Triggered checkpoint 8997 | -7/Garrison | Discovered new exit (range 23) 9004 | -7/Garrison | Garrison Relay disabled 9043 | -7/Garrison | Discovered new exit (range 57) 9051 | -7/Garrison | Triggered checkpoint 9055 | -7/Garrison | Triggered checkpoint 9166 | -7/Garrison | Discovered new exit (range 10) 9429 | -7/Garrison | Triggered checkpoint 9509 | -7/Garrison | Expanded RIF knowledge: Patrol Navigation 9542 | -7/Garrison | Garrison Relay disabled 9619 | -7/Garrison | Entered Factory 9619 | -6/Factory | Accompanied by 2 allies 9619 | -6/Factory | Evolved 2 slots: Utility x2 9969 | -6/Factory | First assault squad dispatched 10116 | -6/Factory | Lost 10 parts (2p2n2u4w) 10235 | -6/Factory | Identified exit to Garrison 10299 | -6/Factory | Entered Garrison 10634 | -6/Garrison | Garrison Relay disabled 10728 | -6/Garrison | Core integrity fell below 50% 10792 | -6/Garrison | Core integrity fell below 20% 10845 | -6/Garrison | Lost 13 parts (1p3n6u3w) 10913 | -6/Garrison | Triggered checkpoint 10913 | -6/Garrison | Triggered checkpoint 10964 | -6/Garrison | Destroyed by G-50 Soldier with Heavy Laser Last Messages --------------- 10915_ Field strength at 1. 10916_ Stasis field depleted. 10918_ Drone destroyed. 10918_ Dropped Hcp. Battery. 10919_ Extracted 76 energy. 10919_ Acquired Hcp. Battery. 10929_ Slug penetrates Wall. 10932_ Slug penetrates X-67 Chaingunner. 10941_ X-67 Chaingunner destroyed. 10941_ Flexi-carbon Leg destroyed. 10943_ Slug penetrates X-67 Chaingunner. 10946_ X-67 Chaingunner destroyed. 10946_ Switching to secondary target: G-50 Soldier. 10947_ Imp. Utility Shielding destroyed. 10952_ Slug penetrates G-50 Soldier. 10955_ Slug penetrates Wall. 10957_ Slug penetrates G-50 Soldier. 10957_ G-50 Soldier destroyed. 10963_ Slug penetrates Wall. Map ----- +----------------------------------------------------+ | ?????????????????????????????????????????????????? | | ?????????????????????????????????????????????????? | | ?????????????????????????????????????????????????? | | ????????????????????????????????? ?????????????? | | ????????????????????????????????? ?????????????? | | ????????????????????????????????# ?????????????? | | ????????????????????????????????# #????????????? | | ????????????????????????????????#^ #?????????#??? | | ????????????????????????????????# #???????? #??? | | ????????????????????????????????# #??????? T??? | | ????????????????????????????????# ##??""## #??? | | ????????????????????????????????# ?? ???? | | ????????????????????????????????# ?? ???? | | ????????????????????????????????# ?? ??? ? | | ????????????????????????????????# #? #?? #?? | | ??????????????????????????????### ## ## #?? | | ??????????????????????????????# "?? | | ??????????????????????????????# "?? | | ??????????????????????????????# ?????? | | ??????????????????????????????# ?????????? | | ????????????????????????????????# ^ #???? #??????? | | ??????????????????????########### % ## ## #?? | | ??????????????????????# *!=!= g | | ??????????????????????# !%! | | ??????????????????????# =%! ##? | | ??????????????????????# @############ ## ##?? | | ??????????????????????# #??????????? #???#??? | | ??????????????######??# #????????????####??????? | | ??????????????#"# #??# +??????????????????????? | | ??????????????#" #??# #??????????????????????? | | ??????????????# #??# #??????????????????????? | | ??????????????#" #??# #??????????????????????? | | ??????????????#"# #??# #??????????????????????? | | ??????????????###! #??# #??????????????????????? | | ????????????????# ^#??# #??????????????????????? | | ????????????????# ^#??# % #??????????????????????? | | ??????????????### #??# #??????????????????????? | | ??????????????# ^#??# #??????????????????????? | | ??????????????# = #??# #??????????????????????? | | ??????????????# #??# % #??????????????????????? | | ??????????????### !#??# #??????????????????????? | | ????????????????#|/#### #??????????????????????? | | ????????????????# = #??????????????????????? | | ????????????????# = #??????????????????????? | | ????????????????####### #??????????????????????? | | ????????#####?????????# %#??????????????????????? | | ????????#"T"########### #??????????????????????? | | ????????#" #??????????????????????? | | ????????############### #??????????????????????? | | ??????????????????????# #??????????????????????? | +----------------------------------------------------+ Best States ------------- Heat Dissipation 81 Energy Generation 18 Energy Capacity 500 Matter Stores 300 Matter Capacity 300 Sight Range 20 Robot Scan Range 16 Terrain Scan Range 16 Terrain Scan Density 10 Corruption Block 8 Armor Coverage 600 Resistance: KI 20 Resistance: TH 20 Core Shielding 20 Propulsion Shielding 66 Utility Shielding 66 Evasion (%) 55 Armor Integrity Analysis 30 Recoil Reduction 4 Particle Charging 20 Offensive Hacking 20 Defensive Hacking 20 Relay Coupler Types 4 Relay Coupler Value 85 Item Schematics ----------------- Hcp. Storage Unit | -7/Factory | Hacked Huge Storage Unit | -7/Factory | Hacked Lrg. Storage Unit | -7/Factory | Hacked Robot Schematics ------------------ None Fabricated ------------ Nothing Alien Tech Used ----------------- None Achievements -------------- None Challenges ------------ None Game ------ Seed ImpulseSlugInjector Manual? 0 Play Time 03:00:53 Cumulative 186.8 hours Start 2024.04.20 @ 21:56:26 End 2024.04.22 @ 01:39:54 Sessions 5 Manual Loads 0 Difficulty Rogue Special Mode None Game No. 53 Rogue 53 Adventurer 0 Explorer 0 Win Type - Total 13 Types 7/2/2/1/1/0/0/0/0 Lore% 48 Gallery% 71 Achievement% 63 Wizard Run 0 Options --------- Layout 1 ASCII 0 Keyboard 0 Movement Numpad Keybinds 0 Fullscreen 1 Font 24/Smallcaps Map View 50x35 Zoom Use 0% Tactical HUD 1 Map Filters NONE Filters NONE Steam 1 RUN: 1c48f9e7-259e-4a9f-8ddb-47e1bfd4095f